{"text_format":"3","workbook":"xlsx","n_sheets":4,"sheets":["HP Pricing Schedu","VMwarePricing Schedule","Prof Service Pricing Schedule","Detailed Specification"],"not_rendered":{"images":2,"defined_names":1},"read":"whole","date_system":"1900"}

{"sheet":"HP Pricing Schedu","index":0,"n_rows":644,"n_cols":7,"rows_kept":644,"merged":[[1,0,1,2],[13,0,13,2],[14,2,14,3],[15,2,15,3],[16,2,16,3],[17,2,17,3],[18,2,18,3],[19,2,19,3],[20,2,20,3],[21,2,21,3],[22,2,22,3],[23,2,23,3],[24,2,24,3],[25,2,25,3],[26,2,26,3],[27,2,27,3],[28,2,28,3],[29,2,29,3],[30,2,30,3],[31,2,31,3],[32,2,32,3],[33,2,33,3],[34,2,34,3],[35,2,35,3],[36,2,36,3],[37,2,37,3],[38,2,38,3],[39,2,39,3],[40,2,40,3],[41,2,41,3],[42,2,42,3],[43,2,43,3],[44,2,44,3],[45,2,45,3],[46,2,46,3],[47,2,47,3],[48,2,48,3],[49,2,49,3],[50,2,50,3],[51,2,51,3],[52,2,52,3],[53,2,53,3],[54,2,54,3],[55,2,55,3],[56,2,56,3],[57,2,57,3],[58,2,58,3],[59,2,59,3],[60,2,60,3],[61,2,61,3],[62,2,62,3],[63,2,63,3],[64,2,64,3],[65,2,65,3],[66,2,66,3],[67,2,67,3],[68,2,68,3],[69,2,69,3],[70,2,70,3],[71,2,71,3],[72,2,72,3],[73,2,73,3],[74,2,74,3],[75,2,75,3],[76,2,76,3],[77,2,77,3],[78,2,78,3],[79,2,79,3],[80,2,80,3],[81,2,81,3],[82,2,82,3],[83,2,83,3],[84,2,84,3],[85,2,85,3],[86,2,86,3],[87,2,87,3],[88,2,88,3],[89,2,89,3],[90,2,90,3],[91,2,91,3],[92,2,92,3],[93,2,93,3],[94,2,94,3],[95,2,95,3],[96,2,96,3],[97,2,97,3],[98,2,98,3],[99,2,99,3],[100,2,100,3],[101,2,101,3],[102,2,102,3],[103,2,103,3],[104,2,104,3],[105,2,105,3],[106,2,106,3],[107,2,107,3],[108,2,108,3],[109,2,109,3],[110,2,110,3],[111,2,111,3],[112,2,112,3],[113,2,113,3],[114,2,114,3],[115,2,115,3],[116,2,116,3],[117,2,117,3],[118,2,118,3],[119,2,119,3],[120,2,120,3],[121,2,121,3],[122,2,122,3],[123,2,123,3],[124,2,124,3],[125,2,125,3],[126,2,126,3],[127,2,127,3],[128,2,128,3],[129,2,129,3],[130,2,130,3],[131,2,131,3],[132,2,132,3],[133,2,133,3],[134,2,134,3],[135,2,135,3],[136,2,136,3],[137,2,137,3],[138,2,138,3],[139,2,139,3],[140,2,140,3],[141,2,141,3],[142,2,142,3],[143,2,143,3],[144,2,144,3],[145,2,145,3],[146,2,146,3],[147,2,147,3],[148,2,148,3],[149,2,149,3],[150,2,150,3],[151,2,151,3],[152,2,152,3],[153,2,153,3],[154,2,154,3],[155,2,155,3],[156,2,156,3],[157,2,157,3],[158,2,158,3],[159,2,159,3],[160,2,160,3],[161,2,161,3],[162,2,162,3],[163,2,163,3],[164,2,164,3],[165,2,165,3],[166,2,166,3],[167,2,167,3],[168,2,168,3],[169,2,169,3],[170,2,170,3],[171,2,171,3],[172,2,172,3],[173,2,173,3],[174,2,174,3],[175,2,175,3],[176,2,176,3],[177,2,177,3],[178,2,178,3],[179,2,179,3],[180,2,180,3],[181,2,181,3],[182,2,182,3],[183,2,183,3],[184,2,184,3],[185,2,185,3],[186,2,186,3],[187,2,187,3],[188,2,188,3],[189,2,189,3],[190,2,190,3],[191,2,191,3],[192,2,192,3],[193,2,193,3],[194,2,194,3],[195,2,195,3],[196,2,196,3],[197,2,197,3],[198,2,198,3],[199,2,199,3],[200,2,200,3],[201,2,201,3],[202,2,202,3],[203,2,203,3],[204,2,204,3],[205,2,205,3],[206,2,206,3],[207,2,207,3],[208,2,208,3],[209,2,209,3],[210,2,210,3],[211,2,211,3],[212,2,212,3],[213,2,213,3],[214,2,214,3],[215,2,215,3],[216,2,216,3],[217,2,217,3],[218,2,218,3],[219,2,219,3],[220,2,220,3],[221,2,221,3],[222,2,222,3],[223,2,223,3],[224,2,224,3],[225,2,225,3],[226,2,226,3],[227,2,227,3],[228,2,228,3],[229,2,229,3],[230,2,230,3],[231,2,231,3],[232,2,232,3],[233,2,233,3],[234,2,234,3],[235,2,235,3],[236,2,236,3],[237,2,237,3],[238,2,238,3],[239,2,239,3],[240,2,240,3],[241,2,241,3],[242,2,242,3],[243,2,243,3],[244,2,244,3],[245,2,245,3],[246,2,246,3],[247,2,247,3],[248,2,248,3],[249,2,249,3],[250,2,250,3],[251,2,251,3],[252,2,252,3],[253,2,253,3],[254,2,254,3],[255,2,255,3],[256,2,256,3],[257,2,257,3],[258,2,258,3],[259,2,259,3],[260,2,260,3],[261,2,261,3],[262,2,262,3],[263,2,263,3],[264,2,264,3],[265,2,265,3],[266,2,266,3],[267,2,267,3],[268,2,268,3],[269,2,269,3],[270,2,270,3],[271,2,271,3],[272,2,272,3],[273,2,273,3],[274,2,274,3],[275,2,275,3],[276,2,276,3],[277,2,277,3],[278,2,278,3],[279,2,279,3],[280,2,280,3],[281,2,281,3],[282,2,282,3],[283,2,283,3],[284,2,284,3],[285,2,285,3],[286,2,286,3],[287,2,287,3],[288,2,288,3],[289,2,289,3],[290,2,290,3],[291,2,291,3],[292,2,292,3],[293,2,293,3],[294,2,294,3],[295,2,295,3],[296,2,296,3],[297,2,297,3],[298,2,298,3],[299,2,299,3],[300,2,300,3],[301,2,301,3],[302,2,302,3],[303,2,303,3],[304,2,304,3],[305,2,305,3],[306,2,306,3],[307,2,307,3],[312,0,312,1],[313,2,313,3],[314,2,314,3],[315,2,315,3],[316,2,316,3],[317,2,317,3],[318,2,318,3],[319,2,319,3],[320,2,320,3],[321,2,321,3],[322,2,322,3],[323,2,323,3],[324,2,324,3],[325,2,325,3],[326,2,326,3],[327,2,327,3],[328,2,328,3],[329,2,329,3],[330,2,330,3],[331,2,331,3],[332,2,332,3],[333,2,333,3],[334,2,334,3],[335,2,335,3],[336,2,336,3],[337,2,337,3],[338,2,338,3],[339,2,339,3],[340,2,340,3],[341,2,341,3],[342,2,342,3],[343,2,343,3],[344,2,344,3],[345,2,345,3],[346,2,346,3],[347,2,347,3],[348,2,348,3],[349,2,349,3],[350,2,350,3],[351,2,351,3],[352,2,352,3],[353,2,353,3],[354,2,354,3],[355,2,355,3],[356,2,356,3],[357,2,357,3],[358,2,358,3],[359,2,359,3],[360,2,360,3],[361,2,361,3],[362,2,362,3],[363,2,363,3],[364,2,364,3],[365,2,365,3],[366,2,366,3],[367,2,367,3],[368,2,368,3],[369,2,369,3],[370,2,370,3],[371,2,371,3],[372,2,372,3],[373,2,373,3],[374,2,374,3],[375,2,375,3],[376,2,376,3],[377,2,377,3],[378,2,378,3],[379,2,379,3],[380,2,380,3],[381,2,381,3],[382,2,382,3],[383,2,383,3],[384,2,384,3],[385,2,385,3],[386,2,386,3],[387,2,387,3],[388,2,388,3],[389,2,389,3],[390,2,390,3],[391,2,391,3],[392,2,392,3],[393,2,393,3],[394,2,394,3],[395,2,395,3],[396,2,396,3],[397,2,397,3],[398,2,398,3],[399,2,399,3],[400,2,400,3],[401,2,401,3],[402,2,402,3],[403,2,403,3],[404,2,404,3],[405,2,405,3],[406,2,406,3],[407,2,407,3],[408,2,408,3],[409,2,409,3],[410,2,410,3],[411,2,411,3],[412,2,412,3],[413,2,413,3],[414,2,414,3],[415,2,415,3],[416,2,416,3],[417,2,417,3],[418,2,418,3],[419,2,419,3],[420,2,420,3],[421,2,421,3],[422,2,422,3],[423,2,423,3],[424,2,424,3],[425,2,425,3],[426,2,426,3],[427,2,427,3],[428,2,428,3],[429,2,429,3],[430,2,430,3],[431,2,431,3],[432,2,432,3],[433,2,433,3],[434,2,434,3],[435,2,435,3],[436,2,436,3],[437,2,437,3],[438,2,438,3],[439,2,439,3],[440,2,440,3],[441,2,441,3],[442,2,442,3],[443,2,443,3],[444,2,444,3],[445,2,445,3],[446,2,446,3],[447,2,447,3],[448,2,448,3],[449,2,449,3],[450,2,450,3],[451,2,451,3],[452,2,452,3],[453,2,453,3],[454,2,454,3],[455,2,455,3],[456,2,456,3],[457,2,457,3],[458,2,458,3],[459,2,459,3],[460,2,460,3],[461,2,461,3],[462,2,462,3],[463,2,463,3],[464,2,464,3],[465,2,465,3],[466,2,466,3],[467,2,467,3],[468,2,468,3],[469,2,469,3],[470,2,470,3],[471,2,471,3],[472,2,472,3],[473,2,473,3],[474,2,474,3],[475,2,475,3],[476,2,476,3],[477,2,477,3],[478,2,478,3],[479,2,479,3],[480,2,480,3],[481,2,481,3],[482,2,482,3],[483,2,483,3],[484,2,484,3],[485,2,485,3],[486,2,486,3],[487,2,487,3],[488,2,488,3],[489,2,489,3],[490,2,490,3],[491,2,491,3],[492,2,492,3],[493,2,493,3],[494,2,494,3],[495,2,495,3],[496,2,496,3],[497,2,497,3],[498,2,498,3],[499,2,499,3],[500,2,500,3],[501,2,501,3],[502,2,502,3],[503,2,503,3],[504,2,504,3],[505,2,505,3],[506,2,506,3],[507,2,507,3],[508,2,508,3],[509,2,509,3],[510,2,510,3],[511,2,511,3],[512,2,512,3],[513,2,513,3],[514,2,514,3],[515,2,515,3],[516,2,516,3],[517,2,517,3],[518,2,518,3],[519,2,519,3],[520,2,520,3],[521,2,521,3],[522,2,522,3],[523,2,523,3],[524,2,524,3],[525,2,525,3],[526,2,526,3],[527,2,527,3],[528,2,528,3],[529,2,529,3],[530,2,530,3],[531,2,531,3],[532,2,532,3],[533,2,533,3],[534,2,534,3],[535,2,535,3],[536,2,536,3],[537,2,537,3],[538,2,538,3],[539,2,539,3],[540,2,540,3],[541,2,541,3],[542,2,542,3],[543,2,543,3],[544,2,544,3],[545,2,545,3],[546,2,546,3],[547,2,547,3],[548,2,548,3],[549,2,549,3],[550,2,550,3],[551,2,551,3],[552,2,552,3],[553,2,553,3],[554,2,554,3],[555,2,555,3],[556,2,556,3],[557,2,557,3],[558,2,558,3],[559,2,559,3],[560,2,560,3],[561,2,561,3],[562,2,562,3],[563,2,563,3],[564,2,564,3],[565,2,565,3],[566,2,566,3],[567,2,567,3],[568,2,568,3],[569,2,569,3],[570,2,570,3],[571,2,571,3],[572,2,572,3],[573,2,573,3],[574,2,574,3],[575,2,575,3],[576,2,576,3],[577,2,577,3],[578,2,578,3],[579,2,579,3],[580,2,580,3],[581,2,581,3],[582,2,582,3],[583,2,583,3],[584,2,584,3],[585,2,585,3],[586,2,586,3],[587,2,587,3],[588,2,588,3],[589,2,589,3],[590,2,590,3],[591,2,591,3],[592,2,592,3],[593,2,593,3],[594,2,594,3],[595,2,595,3],[596,2,596,3],[597,2,597,3],[598,2,598,3],[604,0,604,3],[605,2,605,3],[606,2,606,3],[607,2,607,3],[608,2,608,3],[609,2,609,3],[610,2,610,3],[611,2,611,3],[612,2,612,3],[613,2,613,3],[614,2,614,3],[615,2,615,3],[616,2,616,3],[617,2,617,3],[618,2,618,3],[619,2,619,3],[620,2,620,3],[621,2,621,3],[622,2,622,3],[623,2,623,3],[624,2,624,3],[625,2,625,3],[626,2,626,3],[627,2,627,3],[628,2,628,3],[629,2,629,3],[630,2,630,3],[631,2,631,3],[632,2,632,3],[633,2,633,3],[634,2,634,3],[635,2,635,3],[636,2,636,3],[637,2,637,3],[638,2,638,3],[639,2,639,3],[640,2,640,3],[641,2,641,3],[642,2,642,3]]}
[]
["Pricing Summary"]
[null,"Total Excluding VAT","Total Including VAT"]
["HP Pricing",{"$f":"F309+F600+F644","v":{"v":25,"d":"25.00"}},{"$f":"G309+G600+G644","v":{"v":0,"d":"0.00"}}]
["Vmware",{"$f":"'VMwarePricing Schedule'!C16","v":3},{"$f":"'VMwarePricing Schedule'!D16","v":12}]
["Professional Service Year 1",{"$f":"'Prof Service Pricing Schedule'!D5","v":0},{"$f":"SUM('Prof Service Pricing Schedule'!E5)","v":0}]
["Professional Service Year 2 to 5",{"$f":"'Prof Service Pricing Schedule'!D15","v":0},{"$f":"'Prof Service Pricing Schedule'!E15","v":0}]
[]
[]
[]
[]
[]
[]
["Site and 2 with  Racks"]
["Quantity","Product number","Description",null,"Comply (Yes/No)","Price Excl VAT","Price Incl VAT"]
[1,"P9K40A","HPE 42U 600mmx1200mm G2 Enterprise Shock Rack"]
[1,"P9K40A      001","HPE Factory Express Base Racking Service"]
[3,"P9Q46A","HPE G2 Basic 7.3kVA/60309 3-wire 32A/230V Outlets (36) C13 (6) C19/Vertical INTL PDU"]
[3,"P9Q46A      0D1","Factory Integrated"]
[1,"AF621A","HPE 2x1Ex16 KVM IP Console Switch G2 with Virtual Media CAC Software"]
[1,"AF644A","HPE LCD8500 1U INTL Rackmount Console Kit"]
[1,"AF644A      0D1","Factory Integrated"]
[1,"P1F64A","HPE Inside Unpack/Clean Up w/Lift XL SVC"]
[1,"HA113A1","HPE Installation SVC"]
[1,"HA113A1     5BY","HPE Rack and Rack Options Install SVC"]
[1,"P51174-B21","HPE Synergy 12000 Configure-to-order Frame"]
[1,"P51174-B21  B19","HPE Synergy 12000 CTO Frame"]
[6,"P22139-B21","HPE Synergy 480 Gen10 Plus Base Chassis Configure-to-order Compute Module"]
[6,"P22139-B21  0D1","Factory Integrated"]
[12,"P36936-B21","Intel Xeon-Gold 6342 2.8GHz 24-core 230W Processor for HPE"]
[12,"P36936-B21  0D1","Factory Integrated"]
[72,"P06035-B21","HPE 64GB (1x64GB) Dual Rank x4 DDR4-3200 CAS-22-22-22 Registered Smart Memory Kit"]
[72,"P06035-B21  0D1","Factory Integrated"]
[6,"P36675-B21","HPE Synergy 480 Gen10 Plus 2SFF Standard Drive Cage Kit"]
[6,"P36675-B21  0D1","Factory Integrated"]
[12,"P18420-B21","HPE 240GB SATA 6G Read Intensive SFF SC Multi Vendor SSD"]
[12,"P18420-B21  0D1","Factory Integrated"]
[6,"872955-B21","HPE Synergy Compute Chipset SATA FIO Board Kit"]
[6,"P02054-B21","HPE Synergy 6820C 25/50Gb Converged Network Adapter"]
[6,"P02054-B21  0D1","Factory Integrated"]
[6,"P13771-B21","HPE Trusted Platform Module 2.0 Gen10 Plus Black Rivets Kit"]
[6,"P13771-B21  0D1","Factory Integrated"]
[6,"P37274-B21","HPE Synergy 480 Gen10 Plus CPU Front Heat Sink Kit"]
[6,"P37274-B21  0D1","Factory Integrated"]
[6,"P37275-B21","HPE Synergy 480 Gen10 Plus CPU Rear Heat Sink Kit"]
[6,"P37275-B21  0D1","Factory Integrated"]
[3,"P22139-B21","HPE Synergy 480 Gen10 Plus Base Chassis Configure-to-order Compute Module"]
[3,"P22139-B21  0D1","Factory Integrated"]
[6,"P36936-B21","Intel Xeon-Gold 6342 2.8GHz 24-core 230W Processor for HPE"]
[6,"P36936-B21  0D1","Factory Integrated"]
[36,"P06035-B21","HPE 64GB (1x64GB) Dual Rank x4 DDR4-3200 CAS-22-22-22 Registered Smart Memory Kit"]
[36,"P06035-B21  0D1","Factory Integrated"]
[3,"P36675-B21","HPE Synergy 480 Gen10 Plus 2SFF Standard Drive Cage Kit"]
[3,"P36675-B21  0D1","Factory Integrated"]
[6,"P18420-B21","HPE 240GB SATA 6G Read Intensive SFF SC Multi Vendor SSD"]
[6,"P18420-B21  0D1","Factory Integrated"]
[3,"872955-B21","HPE Synergy Compute Chipset SATA FIO Board Kit"]
[3,"P02054-B21","HPE Synergy 6820C 25/50Gb Converged Network Adapter"]
[3,"P02054-B21  0D1","Factory Integrated"]
[3,"P13771-B21","HPE Trusted Platform Module 2.0 Gen10 Plus Black Rivets Kit"]
[3,"P13771-B21  0D1","Factory Integrated"]
[3,"P37274-B21","HPE Synergy 480 Gen10 Plus CPU Front Heat Sink Kit"]
[3,"P37274-B21  0D1","Factory Integrated"]
[3,"P37275-B21","HPE Synergy 480 Gen10 Plus CPU Rear Heat Sink Kit"]
[3,"P37275-B21  0D1","Factory Integrated"]
[2,"P22139-B21","HPE Synergy 480 Gen10 Plus Base Chassis Configure-to-order Compute Module"]
[2,"P22139-B21  0D1","Factory Integrated"]
[4,"P36936-B21","Intel Xeon-Gold 6342 2.8GHz 24-core 230W Processor for HPE"]
[4,"P36936-B21  0D1","Factory Integrated"]
[16,"P06035-B21","HPE 64GB (1x64GB) Dual Rank x4 DDR4-3200 CAS-22-22-22 Registered Smart Memory Kit"]
[16,"P06035-B21  0D1","Factory Integrated"]
[2,"P36675-B21","HPE Synergy 480 Gen10 Plus 2SFF Standard Drive Cage Kit"]
[2,"P36675-B21  0D1","Factory Integrated"]
[4,"P18420-B21","HPE 240GB SATA 6G Read Intensive SFF SC Multi Vendor SSD"]
[4,"P18420-B21  0D1","Factory Integrated"]
[2,"872955-B21","HPE Synergy Compute Chipset SATA FIO Board Kit"]
[2,"P02054-B21","HPE Synergy 6820C 25/50Gb Converged Network Adapter"]
[2,"P02054-B21  0D1","Factory Integrated"]
[2,"P13771-B21","HPE Trusted Platform Module 2.0 Gen10 Plus Black Rivets Kit"]
[2,"P13771-B21  0D1","Factory Integrated"]
[2,"P37274-B21","HPE Synergy 480 Gen10 Plus CPU Front Heat Sink Kit"]
[2,"P37274-B21  0D1","Factory Integrated"]
[2,"P37275-B21","HPE Synergy 480 Gen10 Plus CPU Rear Heat Sink Kit"]
[2,"P37275-B21  0D1","Factory Integrated"]
[1,"867793-B21","HPE Synergy 50Gb Interconnect Link Module"]
[1,"867793-B21  0D1","Factory Integrated"]
[1,"867796-B21","HPE Virtual Connect SE 100Gb F32 Module for Synergy"]
[1,"867796-B21  0D1","Factory Integrated"]
[2,"P9H30A","HPE 32Gb SFP28 Short Wave Commercial Temperature Transceiver"]
[2,"P9H30A      0D1","Factory Integrated"]
[1,"R3P67A","HPE Synergy 32Gb Fibre Channel Upgrade FIO LTU"]
[2,"876852-B21","HPE Synergy 4-port Frame Link Module"]
[2,"876852-B21  0D1","Factory Integrated"]
[12,"P44712-B21","HPE 1800W-2200W Flex Slot Titanium Hot Plug Low Halogen Power Supply Kit"]
[12,"P44712-B21  0D1","Factory Integrated"]
[10,"P51175-B21","HPE Synergy 12000 High Capacity Fan Kit"]
[10,"P51175-B21  0D1","Factory Integrated"]
[1,"804938-B21","HPE Synergy Frame Rack Rail Kit"]
[1,"804938-B21  0D1","Factory Integrated"]
[1,"804943-B21","HPE Synergy Frame 4x Lift Handles"]
[1,"804943-B21  0D1","Factory Integrated"]
[1,"859493-B21","Synergy Multi Frame Master1 FIO"]
[1,"872957-B21","HPE Synergy Composer2 Management Appliance"]
[1,"872957-B21  0D1","Factory Integrated"]
[6,"P44074-B21","HPE Synergy Dual Slot Power Supply Adapter"]
[6,"P44074-B21  0D1","Factory Integrated"]
[1,"P51174-B21","HPE Synergy 12000 Configure-to-order Frame"]
[1,"P51174-B21  B19","HPE Synergy 12000 CTO Frame"]
[6,"P22139-B21","HPE Synergy 480 Gen10 Plus Base Chassis Configure-to-order Compute Module"]
[6,"P22139-B21  0D1","Factory Integrated"]
[12,"P36936-B21","Intel Xeon-Gold 6342 2.8GHz 24-core 230W Processor for HPE"]
[12,"P36936-B21  0D1","Factory Integrated"]
[72,"P06035-B21","HPE 64GB (1x64GB) Dual Rank x4 DDR4-3200 CAS-22-22-22 Registered Smart Memory Kit"]
[72,"P06035-B21  0D1","Factory Integrated"]
[6,"P36675-B21","HPE Synergy 480 Gen10 Plus 2SFF Standard Drive Cage Kit"]
[6,"P36675-B21  0D1","Factory Integrated"]
[12,"P18420-B21","HPE 240GB SATA 6G Read Intensive SFF SC Multi Vendor SSD"]
[12,"P18420-B21  0D1","Factory Integrated"]
[6,"872955-B21","HPE Synergy Compute Chipset SATA FIO Board Kit"]
[6,"P02054-B21","HPE Synergy 6820C 25/50Gb Converged Network Adapter"]
[6,"P02054-B21  0D1","Factory Integrated"]
[6,"P13771-B21","HPE Trusted Platform Module 2.0 Gen10 Plus Black Rivets Kit"]
[6,"P13771-B21  0D1","Factory Integrated"]
[6,"P37274-B21","HPE Synergy 480 Gen10 Plus CPU Front Heat Sink Kit"]
[6,"P37274-B21  0D1","Factory Integrated"]
[6,"P37275-B21","HPE Synergy 480 Gen10 Plus CPU Rear Heat Sink Kit"]
[6,"P37275-B21  0D1","Factory Integrated"]
[2,"P22139-B21","HPE Synergy 480 Gen10 Plus Base Chassis Configure-to-order Compute Module"]
[2,"P22139-B21  0D1","Factory Integrated"]
[4,"P36936-B21","Intel Xeon-Gold 6342 2.8GHz 24-core 230W Processor for HPE"]
[4,"P36936-B21  0D1","Factory Integrated"]
[24,"P06035-B21","HPE 64GB (1x64GB) Dual Rank x4 DDR4-3200 CAS-22-22-22 Registered Smart Memory Kit"]
[24,"P06035-B21  0D1","Factory Integrated"]
[2,"P36675-B21","HPE Synergy 480 Gen10 Plus 2SFF Standard Drive Cage Kit"]
[2,"P36675-B21  0D1","Factory Integrated"]
[4,"P18420-B21","HPE 240GB SATA 6G Read Intensive SFF SC Multi Vendor SSD"]
[4,"P18420-B21  0D1","Factory Integrated"]
[2,"872955-B21","HPE Synergy Compute Chipset SATA FIO Board Kit"]
[2,"P02054-B21","HPE Synergy 6820C 25/50Gb Converged Network Adapter"]
[2,"P02054-B21  0D1","Factory Integrated"]
[2,"P13771-B21","HPE Trusted Platform Module 2.0 Gen10 Plus Black Rivets Kit"]
[2,"P13771-B21  0D1","Factory Integrated"]
[2,"P37274-B21","HPE Synergy 480 Gen10 Plus CPU Front Heat Sink Kit"]
[2,"P37274-B21  0D1","Factory Integrated"]
[2,"P37275-B21","HPE Synergy 480 Gen10 Plus CPU Rear Heat Sink Kit"]
[2,"P37275-B21  0D1","Factory Integrated"]
[2,"P22139-B21","HPE Synergy 480 Gen10 Plus Base Chassis Configure-to-order Compute Module"]
[2,"P22139-B21  0D1","Factory Integrated"]
[4,"P36936-B21","Intel Xeon-Gold 6342 2.8GHz 24-core 230W Processor for HPE"]
[4,"P36936-B21  0D1","Factory Integrated"]
[16,"P06035-B21","HPE 64GB (1x64GB) Dual Rank x4 DDR4-3200 CAS-22-22-22 Registered Smart Memory Kit"]
[16,"P06035-B21  0D1","Factory Integrated"]
[2,"P36675-B21","HPE Synergy 480 Gen10 Plus 2SFF Standard Drive Cage Kit"]
[2,"P36675-B21  0D1","Factory Integrated"]
[4,"P18420-B21","HPE 240GB SATA 6G Read Intensive SFF SC Multi Vendor SSD"]
[4,"P18420-B21  0D1","Factory Integrated"]
[2,"872955-B21","HPE Synergy Compute Chipset SATA FIO Board Kit"]
[2,"P02054-B21","HPE Synergy 6820C 25/50Gb Converged Network Adapter"]
[2,"P02054-B21  0D1","Factory Integrated"]
[2,"P13771-B21","HPE Trusted Platform Module 2.0 Gen10 Plus Black Rivets Kit"]
[2,"P13771-B21  0D1","Factory Integrated"]
[2,"P37274-B21","HPE Synergy 480 Gen10 Plus CPU Front Heat Sink Kit"]
[2,"P37274-B21  0D1","Factory Integrated"]
[2,"P37275-B21","HPE Synergy 480 Gen10 Plus CPU Rear Heat Sink Kit"]
[2,"P37275-B21  0D1","Factory Integrated"]
[1,"867793-B21","HPE Synergy 50Gb Interconnect Link Module"]
[1,"867793-B21  0D1","Factory Integrated"]
[1,"867796-B21","HPE Virtual Connect SE 100Gb F32 Module for Synergy"]
[1,"867796-B21  0D1","Factory Integrated"]
[2,"P9H30A","HPE 32Gb SFP28 Short Wave Commercial Temperature Transceiver"]
[2,"P9H30A      0D1","Factory Integrated"]
[1,"R3P67A","HPE Synergy 32Gb Fibre Channel Upgrade FIO LTU"]
[2,"876852-B21","HPE Synergy 4-port Frame Link Module"]
[2,"876852-B21  0D1","Factory Integrated"]
[12,"P44712-B21","HPE 1800W-2200W Flex Slot Titanium Hot Plug Low Halogen Power Supply Kit"]
[12,"P44712-B21  0D1","Factory Integrated"]
[10,"P51175-B21","HPE Synergy 12000 High Capacity Fan Kit"]
[10,"P51175-B21  0D1","Factory Integrated"]
[1,"804938-B21","HPE Synergy Frame Rack Rail Kit"]
[1,"804938-B21  0D1","Factory Integrated"]
[1,"859494-B22","Synergy Multi Frame Master2 FIO"]
[1,"872957-B21","HPE Synergy Composer2 Management Appliance"]
[1,"872957-B21  0D1","Factory Integrated"]
[6,"P44074-B21","HPE Synergy Dual Slot Power Supply Adapter"]
[6,"P44074-B21  0D1","Factory Integrated"]
[4,"845420-B21","HPE QSFP28 to 4x25Gb SFP28 7m Active Optical Cable"]
[4,"845416-B21","HPE 100Gb QSFP28 to 4x25Gb SFP28 3m Direct Attach Copper Cable"]
[1,"HU0R5A5","HPE 5Y Service Credits 10 Per Yr SVC"]
[30,"HU0R5A5     Y39","HPE 5Y Service Credits Qty 50 SVC"]
[30,"H1SR4AS","HPE Service Credit"]
[1,"HU3V3A5","HPE 5Y Complete Care Starter Pack basic SVC"]
[6,"HU3V3A5     Y2Y","HPE 5Y CC Starter Pack Basic SVC"]
[6,"HG7A4AS","HPE CC Environment Wide Entitlement SVC"]
[1,"HU0R5A5","HPE 5Y Service Credits 10 Per Yr SVC"]
[15,"HU0R5A5     Y39","HPE 5Y Service Credits Qty 50 SVC"]
[15,"H1SR4AS","HPE Service Credit"]
[1,"AC131A","HPE ProLiant Door/dock Extra Large Logistic Service"]
[1,"HU3V3A5","HPE 5Y Complete Care Starter Pack basic SVC"]
[3,"HU3V3A5     Y2Y","HPE 5Y CC Starter Pack Basic SVC"]
[3,"HG7A4AS","HPE CC Environment Wide Entitlement SVC"]
[1,"HU0R5A5","HPE 5Y Service Credits 10 Per Yr SVC"]
[10,"HU0R5A5     Y39","HPE 5Y Service Credits Qty 50 SVC"]
[10,"H1SR4AS","HPE Service Credit"]
[1,"HU3V3A5","HPE 5Y Complete Care Starter Pack basic SVC"]
[2,"HU3V3A5     Y2Y","HPE 5Y CC Starter Pack Basic SVC"]
[2,"HG7A4AS","HPE CC Environment Wide Entitlement SVC"]
[2,"876689-B21","HPE Synergy 300Gb Interconnect Link 3m Active Optical Cable"]
[1,"845406-B21","HPE 100Gb QSFP28 to QSFP28 3m Direct Attach Copper Cable"]
[2,"QK734A","HPE Premier Flex LC/LC Multi-mode OM4 2 Fiber 5m Cable"]
[1,"487655-B21","HPE BladeSystem c-Class 10GbE SFP+ to SFP+ 3m Direct Attach Copper Cable"]
[1,"HU0R5A5","HPE 5Y Service Credits 10 Per Yr SVC"]
[30,"HU0R5A5     Y39","HPE 5Y Service Credits Qty 50 SVC"]
[30,"H1SR4AS","HPE Service Credit"]
[1,"HU3V3A5","HPE 5Y Complete Care Starter Pack basic SVC"]
[6,"HU3V3A5     Y2Y","HPE 5Y CC Starter Pack Basic SVC"]
[6,"HG7A4AS","HPE CC Environment Wide Entitlement SVC"]
[1,"HU0R5A5","HPE 5Y Service Credits 10 Per Yr SVC"]
[10,"HU0R5A5     Y39","HPE 5Y Service Credits Qty 50 SVC"]
[10,"H1SR4AS","HPE Service Credit"]
[1,"AC131A","HPE ProLiant Door/dock Extra Large Logistic Service"]
[1,"HU3V3A5","HPE 5Y Complete Care Starter Pack basic SVC"]
[2,"HU3V3A5     Y2Y","HPE 5Y CC Starter Pack Basic SVC"]
[2,"HG7A4AS","HPE CC Environment Wide Entitlement SVC"]
[1,"HU0R5A5","HPE 5Y Service Credits 10 Per Yr SVC"]
[10,"HU0R5A5     Y39","HPE 5Y Service Credits Qty 50 SVC"]
[10,"H1SR4AS","HPE Service Credit"]
[1,"HU3V3A5","HPE 5Y Complete Care Starter Pack basic SVC"]
[2,"HU3V3A5     Y2Y","HPE 5Y CC Starter Pack Basic SVC"]
[2,"HG7A4AS","HPE CC Environment Wide Entitlement SVC"]
[1,"HU0R5A5","HPE 5Y Service Credits 10 Per Yr SVC"]
[5,"HU0R5A5     Y39","HPE 5Y Service Credits Qty 50 SVC"]
[5,"H1SR4AS","HPE Service Credit"]
[1,"HU3V3A5","HPE 5Y Complete Care Starter Pack basic SVC"]
[1,"HU3V3A5     Y2Y","HPE 5Y CC Starter Pack Basic SVC"]
[1,"HG7A4AS","HPE CC Environment Wide Entitlement SVC"]
[2,"876689-B21","HPE Synergy 300Gb Interconnect Link 3m Active Optical Cable"]
[1,"845406-B21","HPE 100Gb QSFP28 to QSFP28 3m Direct Attach Copper Cable"]
[1,"HU4D5A5","HPE 5Y Complete Care Addon Essential Service"]
[21,"HU4D5A5     ZVS","HPE SY480 Gen10 Plus Support"]
[2,"HU4D5A5     WJN","HPE Synergy 1200 Frame Supp"]
[2,"HU4D5A5     Z1Q","HPE Synergy Composer2 Support"]
[2,"HU4D5A5     Z1R","HPE Synergy VC SE 100Gb F32 Module Supp"]
[2,"HU4D5A5     Z1S","HPE Synergy 50Gb IC Link Module Support"]
[2,"QK734A","HPE Premier Flex LC/LC Multi-mode OM4 2 Fiber 5m Cable"]
[1,"487655-B21","HPE BladeSystem c-Class 10GbE SFP+ to SFP+ 3m Direct Attach Copper Cable"]
[1,"HA124A1","HPE Technical Installation Startup SVC"]
[1,"HA124A1     5ZM","HPE Synergy First Frame Startup SVC"]
[1,"HA124A1     5ZQ","HPE Synergy Additional Frame Startup SVC"]
[1,"HU7D2A1","HPE Synergy Ecosystem Health Review SVC"]
[2,"JL624A","Aruba 8325-48Y8C 48p 25G SFP/+/28 8p 100G QSFP+/28 Front-to-Back 6 Fans and 2 PSU Bundle"]
[2,"JL624A      ACQ","Aruba 8325-48Y8C 48p 25G SFP/+/28 8p 100G QSFP+/28 Front-to-Back 6 Fans and 2 PSU Bundle ZA en"]
[1,"H8A01A3","HPE 3Y Foundation Care NBD Exchange"]
[2,"H8A01A3     X7Q","HPE Aruba 8325-48 Support"]
[1,"P9K10A","HPE 42U 600mmx1200mm G2 Kitted Advanced Shock Rack with Side Panels and Baying"]
[1,"P9K10A      001","HPE Factory Express Base Racking Service"]
[1,"R0N93A","HPE Alletra 9000 4-way NVMe Storage Base"]
[1,"R0N93A      0D1","Factory Integrated"]
[1,"581817-B21","HPE Configurator Defined Build Instruction Option"]
[1,"R0N99A","HPE Alletra 9060 2-node Controller"]
[1,"R0N99A      0D1","Factory Integrated"]
[8,"Q2P62A","HPE 32Gb SFP28 Short Wave 1-pack Pull Tab Optical Transceiver"]
[8,"Q2P62A      0D1","Factory Integrated"]
[2,"R3B28A","HPE Alletra 9000 16/32Gb 4-port Fibre Channel Host Bus Adapter"]
[2,"R3B28A      0D1","Factory Integrated"]
[12,"R0Q16B","HPE Alletra 9000 7.68TB NVMe SFF FIPS Encrypted SSD"]
[12,"R0Q16B      0D1","Factory Integrated"]
[1,"R1P29A","HPE Data Encryption LTU"]
[1,"R1P29A      0D1","Factory Integrated"]
[2,"R4W00A","HPE 1700W Power Supply Battery Kit"]
[2,"R4W00A      0D1","Factory Integrated"]
[1,"R3B13A","HPE Alletra 2240 2U SFF Drive Enclosure"]
[1,"R3B13A      0D1","Factory Integrated"]
[12,"R0Q16B","HPE Alletra 9000 7.68TB NVMe SFF FIPS Encrypted SSD"]
[12,"R0Q16B      0D1","Factory Integrated"]
[2,"R3B52A","HPE 100Gb QSFP28 to QSFP28 1m Direct Attach Copper Cable"]
[2,"R3B52A      0D1","Factory Integrated"]
[2,"R3B79A","HPE 1700W Power Supply Kit"]
[2,"R3B79A      0D1","Factory Integrated"]
[1,"Q1H95A","HPE Storage 1U Rack Accessories Kit"]
[1,"Q1H95A      0D1","Factory Integrated"]
[2,"R6B05A","HPE SN6700B 64Gb 56/24 24-port 32Gb Short Wave SFP28 Integrated Fibre Channel Switch"]
[2,"R6B05A      0D1","Factory Integrated"]
[48,"QK735A","HPE Premier Flex LC/LC Multi-mode OM4 2 Fiber 15m Cable"]
[48,"QK735A      0D1","Factory Integrated"]
[4,"P9Q45A","HPE G2 Basic 7.3kVA/60309 3-wire 32A/230V Outlets (20) C13/Vertical INTL PDU"]
[4,"P9Q45A      0D1","Factory Integrated"]
[1,"P1F64A","HPE Inside Unpack/Clean Up w/Lift XL SVC"]
[1,"S1E74AAE","HPE Alletra 9000 Software and Support SaaS"]
[946,"S1E74AAE    CTH","5yr Subscription"]
[1,"HA113A1","HPE Installation SVC"]
[1,"HA113A1     5BY","HPE Rack and Rack Options Install SVC"]
[1,"H1SR4AS","HPE Service Credit"]
[1,"HA124A1","HPE Technical Installation Startup SVC"]
[1,"HA124A1     5R5","HPE Storage System Startup Base SW SVC"]
[1,"HA124A1     5SJ","HPE Storage System Startup 4Wy Base SVC"]
[24,"H0JD6A1","HPE Storage SSD Extended Replacement SVC"]
[1,"H0JD5A5","HPE 5Y Service Credits 30 Per Yr SVC"]
[2,"H0JD5A5     WFN","HPE 5Y Service Credits Qty 150 SVC"]
[1,"HU4A6A5","HPE 5Y Tech Care Essential Service"]
[1,"HU4A6A5     ZU5","HPE Alletra 9000 4-way NVMe Base Supp"]
[1,"HU4A6A5     Z15","HPE Data Encryption LTU Supp"]
[2,"HU4A6A5     Z78","HPE SN6700B 64Gb 56/24 Swch Support"]
[1,"HU4A6A5     ZU7","HPE Alletra 9060 2N Controller Supp"]
[2,"HU4A6A5     ZU8","HPE Alletra 9000 16/32Gb 4p FC HBA Supp"]
[2,"HU4A6A5     ZU9","HPE Alletra 9000 1700W PS Batt Kit Supp"]
[24,"HU4A6A5     ZUC","HPE Alletra 9000 7.68TB NVMe SSD Supp",null,null,{"v":1,"d":"1.00"}]
[1,"HU4A6A5     ZVF","HPE Alletra 2240 2U SFF Drv Encl Support"]
[2,"HU4A6A5     ZVG","HPE 1700W PS Kit Support"]
[{"$nulls":5},{"$f":"SUM(F16:F308)","v":{"v":1,"d":"1.00"}},{"$f":"SUM(G16:G308)","v":{"v":0,"d":"0.00"}}]
[]
[]
[]
["Site 3 No Racks"]
["Qty","Product #","Product Description",null,"Comply (Yes/No)","Price Excl VAT","Price Incl VAT"]
[1,"P51174-B21","HPE Synergy 12000 Configure-to-order Frame"]
[1,"P51174-B21  B19","HPE Synergy 12000 CTO Frame"]
[6,"P22139-B21","HPE Synergy 480 Gen10 Plus Base Chassis Configure-to-order Compute Module"]
[6,"P22139-B21  0D1","Factory Integrated"]
[12,"P36936-B21","Intel Xeon-Gold 6342 2.8GHz 24-core 230W Processor for HPE"]
[12,"P36936-B21  0D1","Factory Integrated"]
[72,"P06035-B21","HPE 64GB (1x64GB) Dual Rank x4 DDR4-3200 CAS-22-22-22 Registered Smart Memory Kit"]
[72,"P06035-B21  0D1","Factory Integrated"]
[6,"P36675-B21","HPE Synergy 480 Gen10 Plus 2SFF Standard Drive Cage Kit"]
[6,"P36675-B21  0D1","Factory Integrated"]
[12,"P18420-B21","HPE 240GB SATA 6G Read Intensive SFF SC Multi Vendor SSD"]
[12,"P18420-B21  0D1","Factory Integrated"]
[6,"872955-B21","HPE Synergy Compute Chipset SATA FIO Board Kit",null,null,{"v":22,"d":"22.00"}]
[6,"P02054-B21","HPE Synergy 6820C 25/50Gb Converged Network Adapter"]
[6,"P02054-B21  0D1","Factory Integrated"]
[6,"P13771-B21","HPE Trusted Platform Module 2.0 Gen10 Plus Black Rivets Kit"]
[6,"P13771-B21  0D1","Factory Integrated"]
[6,"P37274-B21","HPE Synergy 480 Gen10 Plus CPU Front Heat Sink Kit"]
[6,"P37274-B21  0D1","Factory Integrated"]
[6,"P37275-B21","HPE Synergy 480 Gen10 Plus CPU Rear Heat Sink Kit"]
[6,"P37275-B21  0D1","Factory Integrated"]
[3,"P22139-B21","HPE Synergy 480 Gen10 Plus Base Chassis Configure-to-order Compute Module"]
[3,"P22139-B21  0D1","Factory Integrated"]
[6,"P36936-B21","Intel Xeon-Gold 6342 2.8GHz 24-core 230W Processor for HPE"]
[6,"P36936-B21  0D1","Factory Integrated"]
[36,"P06035-B21","HPE 64GB (1x64GB) Dual Rank x4 DDR4-3200 CAS-22-22-22 Registered Smart Memory Kit"]
[36,"P06035-B21  0D1","Factory Integrated"]
[3,"P36675-B21","HPE Synergy 480 Gen10 Plus 2SFF Standard Drive Cage Kit"]
[3,"P36675-B21  0D1","Factory Integrated"]
[6,"P18420-B21","HPE 240GB SATA 6G Read Intensive SFF SC Multi Vendor SSD"]
[6,"P18420-B21  0D1","Factory Integrated"]
[3,"872955-B21","HPE Synergy Compute Chipset SATA FIO Board Kit"]
[3,"P02054-B21","HPE Synergy 6820C 25/50Gb Converged Network Adapter"]
[3,"P02054-B21  0D1","Factory Integrated"]
[3,"P13771-B21","HPE Trusted Platform Module 2.0 Gen10 Plus Black Rivets Kit"]
[3,"P13771-B21  0D1","Factory Integrated"]
[3,"P37274-B21","HPE Synergy 480 Gen10 Plus CPU Front Heat Sink Kit"]
[3,"P37274-B21  0D1","Factory Integrated"]
[3,"P37275-B21","HPE Synergy 480 Gen10 Plus CPU Rear Heat Sink Kit"]
[3,"P37275-B21  0D1","Factory Integrated"]
[2,"P22139-B21","HPE Synergy 480 Gen10 Plus Base Chassis Configure-to-order Compute Module"]
[2,"P22139-B21  0D1","Factory Integrated"]
[4,"P36936-B21","Intel Xeon-Gold 6342 2.8GHz 24-core 230W Processor for HPE"]
[4,"P36936-B21  0D1","Factory Integrated"]
[16,"P06035-B21","HPE 64GB (1x64GB) Dual Rank x4 DDR4-3200 CAS-22-22-22 Registered Smart Memory Kit"]
[16,"P06035-B21  0D1","Factory Integrated"]
[2,"P36675-B21","HPE Synergy 480 Gen10 Plus 2SFF Standard Drive Cage Kit"]
[2,"P36675-B21  0D1","Factory Integrated"]
[4,"P18420-B21","HPE 240GB SATA 6G Read Intensive SFF SC Multi Vendor SSD"]
[4,"P18420-B21  0D1","Factory Integrated"]
[2,"872955-B21","HPE Synergy Compute Chipset SATA FIO Board Kit"]
[2,"P02054-B21","HPE Synergy 6820C 25/50Gb Converged Network Adapter"]
[2,"P02054-B21  0D1","Factory Integrated"]
[2,"P13771-B21","HPE Trusted Platform Module 2.0 Gen10 Plus Black Rivets Kit"]
[2,"P13771-B21  0D1","Factory Integrated"]
[2,"P37274-B21","HPE Synergy 480 Gen10 Plus CPU Front Heat Sink Kit"]
[2,"P37274-B21  0D1","Factory Integrated"]
[2,"P37275-B21","HPE Synergy 480 Gen10 Plus CPU Rear Heat Sink Kit"]
[2,"P37275-B21  0D1","Factory Integrated"]
[1,"867793-B21","HPE Synergy 50Gb Interconnect Link Module"]
[1,"867793-B21  0D1","Factory Integrated"]
[1,"867796-B21","HPE Virtual Connect SE 100Gb F32 Module for Synergy"]
[1,"867796-B21  0D1","Factory Integrated"]
[2,"P9H30A","HPE 32Gb SFP28 Short Wave Commercial Temperature Transceiver"]
[2,"P9H30A      0D1","Factory Integrated"]
[1,"R3P67A","HPE Synergy 32Gb Fibre Channel Upgrade FIO LTU"]
[2,"876852-B21","HPE Synergy 4-port Frame Link Module"]
[2,"876852-B21  0D1","Factory Integrated"]
[12,"P44712-B21","HPE 1800W-2200W Flex Slot Titanium Hot Plug Low Halogen Power Supply Kit"]
[12,"P44712-B21  0D1","Factory Integrated"]
[10,"P51175-B21","HPE Synergy 12000 High Capacity Fan Kit"]
[10,"P51175-B21  0D1","Factory Integrated"]
[1,"804938-B21","HPE Synergy Frame Rack Rail Kit"]
[1,"804938-B21  0D1","Factory Integrated"]
[1,"804943-B21","HPE Synergy Frame 4x Lift Handles"]
[1,"804943-B21  0D1","Factory Integrated"]
[1,"859493-B21","Synergy Multi Frame Master1 FIO"]
[1,"872957-B21","HPE Synergy Composer2 Management Appliance"]
[1,"872957-B21  0D1","Factory Integrated"]
[6,"P44074-B21","HPE Synergy Dual Slot Power Supply Adapter"]
[6,"P44074-B21  0D1","Factory Integrated"]
[1,"P51174-B21","HPE Synergy 12000 Configure-to-order Frame"]
[1,"P51174-B21  B19","HPE Synergy 12000 CTO Frame"]
[6,"P22139-B21","HPE Synergy 480 Gen10 Plus Base Chassis Configure-to-order Compute Module"]
[6,"P22139-B21  0D1","Factory Integrated"]
[12,"P36936-B21","Intel Xeon-Gold 6342 2.8GHz 24-core 230W Processor for HPE"]
[12,"P36936-B21  0D1","Factory Integrated"]
[72,"P06035-B21","HPE 64GB (1x64GB) Dual Rank x4 DDR4-3200 CAS-22-22-22 Registered Smart Memory Kit"]
[72,"P06035-B21  0D1","Factory Integrated"]
[6,"P36675-B21","HPE Synergy 480 Gen10 Plus 2SFF Standard Drive Cage Kit"]
[6,"P36675-B21  0D1","Factory Integrated"]
[12,"P18420-B21","HPE 240GB SATA 6G Read Intensive SFF SC Multi Vendor SSD"]
[12,"P18420-B21  0D1","Factory Integrated"]
[6,"872955-B21","HPE Synergy Compute Chipset SATA FIO Board Kit"]
[6,"P02054-B21","HPE Synergy 6820C 25/50Gb Converged Network Adapter"]
[6,"P02054-B21  0D1","Factory Integrated"]
[6,"P13771-B21","HPE Trusted Platform Module 2.0 Gen10 Plus Black Rivets Kit"]
[6,"P13771-B21  0D1","Factory Integrated"]
[6,"P37274-B21","HPE Synergy 480 Gen10 Plus CPU Front Heat Sink Kit"]
[6,"P37274-B21  0D1","Factory Integrated"]
[6,"P37275-B21","HPE Synergy 480 Gen10 Plus CPU Rear Heat Sink Kit"]
[6,"P37275-B21  0D1","Factory Integrated"]
[2,"P22139-B21","HPE Synergy 480 Gen10 Plus Base Chassis Configure-to-order Compute Module"]
[2,"P22139-B21  0D1","Factory Integrated"]
[4,"P36936-B21","Intel Xeon-Gold 6342 2.8GHz 24-core 230W Processor for HPE"]
[4,"P36936-B21  0D1","Factory Integrated"]
[24,"P06035-B21","HPE 64GB (1x64GB) Dual Rank x4 DDR4-3200 CAS-22-22-22 Registered Smart Memory Kit"]
[24,"P06035-B21  0D1","Factory Integrated"]
[2,"P36675-B21","HPE Synergy 480 Gen10 Plus 2SFF Standard Drive Cage Kit"]
[2,"P36675-B21  0D1","Factory Integrated"]
[4,"P18420-B21","HPE 240GB SATA 6G Read Intensive SFF SC Multi Vendor SSD"]
[4,"P18420-B21  0D1","Factory Integrated"]
[2,"872955-B21","HPE Synergy Compute Chipset SATA FIO Board Kit"]
[2,"P02054-B21","HPE Synergy 6820C 25/50Gb Converged Network Adapter"]
[2,"P02054-B21  0D1","Factory Integrated"]
[2,"P13771-B21","HPE Trusted Platform Module 2.0 Gen10 Plus Black Rivets Kit"]
[2,"P13771-B21  0D1","Factory Integrated"]
[2,"P37274-B21","HPE Synergy 480 Gen10 Plus CPU Front Heat Sink Kit"]
[2,"P37274-B21  0D1","Factory Integrated"]
[2,"P37275-B21","HPE Synergy 480 Gen10 Plus CPU Rear Heat Sink Kit"]
[2,"P37275-B21  0D1","Factory Integrated"]
[2,"P22139-B21","HPE Synergy 480 Gen10 Plus Base Chassis Configure-to-order Compute Module"]
[2,"P22139-B21  0D1","Factory Integrated"]
[4,"P36936-B21","Intel Xeon-Gold 6342 2.8GHz 24-core 230W Processor for HPE"]
[4,"P36936-B21  0D1","Factory Integrated"]
[16,"P06035-B21","HPE 64GB (1x64GB) Dual Rank x4 DDR4-3200 CAS-22-22-22 Registered Smart Memory Kit"]
[16,"P06035-B21  0D1","Factory Integrated"]
[2,"P36675-B21","HPE Synergy 480 Gen10 Plus 2SFF Standard Drive Cage Kit"]
[2,"P36675-B21  0D1","Factory Integrated"]
[4,"P18420-B21","HPE 240GB SATA 6G Read Intensive SFF SC Multi Vendor SSD"]
[4,"P18420-B21  0D1","Factory Integrated"]
[2,"872955-B21","HPE Synergy Compute Chipset SATA FIO Board Kit"]
[2,"P02054-B21","HPE Synergy 6820C 25/50Gb Converged Network Adapter"]
[2,"P02054-B21  0D1","Factory Integrated"]
[2,"P13771-B21","HPE Trusted Platform Module 2.0 Gen10 Plus Black Rivets Kit"]
[2,"P13771-B21  0D1","Factory Integrated"]
[2,"P37274-B21","HPE Synergy 480 Gen10 Plus CPU Front Heat Sink Kit"]
[2,"P37274-B21  0D1","Factory Integrated"]
[2,"P37275-B21","HPE Synergy 480 Gen10 Plus CPU Rear Heat Sink Kit"]
[2,"P37275-B21  0D1","Factory Integrated"]
[1,"867793-B21","HPE Synergy 50Gb Interconnect Link Module"]
[1,"867793-B21  0D1","Factory Integrated"]
[1,"867796-B21","HPE Virtual Connect SE 100Gb F32 Module for Synergy"]
[1,"867796-B21  0D1","Factory Integrated"]
[2,"P9H30A","HPE 32Gb SFP28 Short Wave Commercial Temperature Transceiver"]
[2,"P9H30A      0D1","Factory Integrated"]
[1,"R3P67A","HPE Synergy 32Gb Fibre Channel Upgrade FIO LTU"]
[2,"876852-B21","HPE Synergy 4-port Frame Link Module"]
[2,"876852-B21  0D1","Factory Integrated"]
[12,"P44712-B21","HPE 1800W-2200W Flex Slot Titanium Hot Plug Low Halogen Power Supply Kit"]
[12,"P44712-B21  0D1","Factory Integrated"]
[10,"P51175-B21","HPE Synergy 12000 High Capacity Fan Kit"]
[10,"P51175-B21  0D1","Factory Integrated"]
[1,"804938-B21","HPE Synergy Frame Rack Rail Kit"]
[1,"804938-B21  0D1","Factory Integrated"]
[1,"859494-B22","Synergy Multi Frame Master2 FIO"]
[1,"872957-B21","HPE Synergy Composer2 Management Appliance"]
[1,"872957-B21  0D1","Factory Integrated"]
[6,"P44074-B21","HPE Synergy Dual Slot Power Supply Adapter"]
[6,"P44074-B21  0D1","Factory Integrated"]
[4,"845420-B21","HPE QSFP28 to 4x25Gb SFP28 7m Active Optical Cable"]
[4,"845416-B21","HPE 100Gb QSFP28 to 4x25Gb SFP28 3m Direct Attach Copper Cable"]
[1,"HU0R5A5","HPE 5Y Service Credits 10 Per Yr SVC"]
[30,"HU0R5A5     Y39","HPE 5Y Service Credits Qty 50 SVC"]
[30,"H1SR4AS","HPE Service Credit"]
[1,"HU3V3A5","HPE 5Y Complete Care Starter Pack basic SVC"]
[6,"HU3V3A5     Y2Y","HPE 5Y CC Starter Pack Basic SVC"]
[6,"HG7A4AS","HPE CC Environment Wide Entitlement SVC"]
[1,"HU0R5A5","HPE 5Y Service Credits 10 Per Yr SVC"]
[15,"HU0R5A5     Y39","HPE 5Y Service Credits Qty 50 SVC"]
[15,"H1SR4AS","HPE Service Credit"]
[1,"AC131A","HPE ProLiant Door/dock Extra Large Logistic Service"]
[1,"HU3V3A5","HPE 5Y Complete Care Starter Pack basic SVC"]
[3,"HU3V3A5     Y2Y","HPE 5Y CC Starter Pack Basic SVC"]
[3,"HG7A4AS","HPE CC Environment Wide Entitlement SVC"]
[1,"HU0R5A5","HPE 5Y Service Credits 10 Per Yr SVC"]
[10,"HU0R5A5     Y39","HPE 5Y Service Credits Qty 50 SVC"]
[10,"H1SR4AS","HPE Service Credit"]
[1,"HU3V3A5","HPE 5Y Complete Care Starter Pack basic SVC"]
[2,"HU3V3A5     Y2Y","HPE 5Y CC Starter Pack Basic SVC"]
[2,"HG7A4AS","HPE CC Environment Wide Entitlement SVC"]
[2,"876689-B21","HPE Synergy 300Gb Interconnect Link 3m Active Optical Cable"]
[1,"845406-B21","HPE 100Gb QSFP28 to QSFP28 3m Direct Attach Copper Cable"]
[2,"QK734A","HPE Premier Flex LC/LC Multi-mode OM4 2 Fiber 5m Cable"]
[1,"487655-B21","HPE BladeSystem c-Class 10GbE SFP+ to SFP+ 3m Direct Attach Copper Cable"]
[1,"HU0R5A5","HPE 5Y Service Credits 10 Per Yr SVC"]
[30,"HU0R5A5     Y39","HPE 5Y Service Credits Qty 50 SVC"]
[30,"H1SR4AS","HPE Service Credit"]
[1,"HU3V3A5","HPE 5Y Complete Care Starter Pack basic SVC"]
[6,"HU3V3A5     Y2Y","HPE 5Y CC Starter Pack Basic SVC"]
[6,"HG7A4AS","HPE CC Environment Wide Entitlement SVC"]
[1,"HU0R5A5","HPE 5Y Service Credits 10 Per Yr SVC"]
[10,"HU0R5A5     Y39","HPE 5Y Service Credits Qty 50 SVC"]
[10,"H1SR4AS","HPE Service Credit"]
[1,"AC131A","HPE ProLiant Door/dock Extra Large Logistic Service"]
[1,"HU3V3A5","HPE 5Y Complete Care Starter Pack basic SVC"]
[2,"HU3V3A5     Y2Y","HPE 5Y CC Starter Pack Basic SVC"]
[2,"HG7A4AS","HPE CC Environment Wide Entitlement SVC"]
[1,"HU0R5A5","HPE 5Y Service Credits 10 Per Yr SVC"]
[10,"HU0R5A5     Y39","HPE 5Y Service Credits Qty 50 SVC"]
[10,"H1SR4AS","HPE Service Credit"]
[1,"HU3V3A5","HPE 5Y Complete Care Starter Pack basic SVC"]
[2,"HU3V3A5     Y2Y","HPE 5Y CC Starter Pack Basic SVC"]
[2,"HG7A4AS","HPE CC Environment Wide Entitlement SVC"]
[1,"HU0R5A5","HPE 5Y Service Credits 10 Per Yr SVC"]
[5,"HU0R5A5     Y39","HPE 5Y Service Credits Qty 50 SVC"]
[5,"H1SR4AS","HPE Service Credit"]
[1,"HU3V3A5","HPE 5Y Complete Care Starter Pack basic SVC"]
[1,"HU3V3A5     Y2Y","HPE 5Y CC Starter Pack Basic SVC"]
[1,"HG7A4AS","HPE CC Environment Wide Entitlement SVC"]
[2,"876689-B21","HPE Synergy 300Gb Interconnect Link 3m Active Optical Cable"]
[1,"845406-B21","HPE 100Gb QSFP28 to QSFP28 3m Direct Attach Copper Cable"]
[1,"HU4D5A5","HPE 5Y Complete Care Addon Essential Service"]
[21,"HU4D5A5     ZVS","HPE SY480 Gen10 Plus Support"]
[2,"HU4D5A5     WJN","HPE Synergy 1200 Frame Supp"]
[2,"HU4D5A5     Z1Q","HPE Synergy Composer2 Support"]
[2,"HU4D5A5     Z1R","HPE Synergy VC SE 100Gb F32 Module Supp"]
[2,"HU4D5A5     Z1S","HPE Synergy 50Gb IC Link Module Support"]
[2,"QK734A","HPE Premier Flex LC/LC Multi-mode OM4 2 Fiber 5m Cable"]
[1,"487655-B21","HPE BladeSystem c-Class 10GbE SFP+ to SFP+ 3m Direct Attach Copper Cable"]
[1,"HA124A1","HPE Technical Installation Startup SVC"]
[1,"HA124A1     5ZM","HPE Synergy First Frame Startup SVC"]
[1,"HA124A1     5ZQ","HPE Synergy Additional Frame Startup SVC"]
[1,"HU7D2A1","HPE Synergy Ecosystem Health Review SVC"]
[60,"HU7R7A1","HPE Edu Learn Credits for NonStop SVC"]
[2,"JL624A","Aruba 8325-48Y8C 48p 25G SFP/+/28 8p 100G QSFP+/28 Front-to-Back 6 Fans and 2 PSU Bundle"]
[2,"JL624A      ACQ","Aruba 8325-48Y8C 48p 25G SFP/+/28 8p 100G QSFP+/28 Front-to-Back 6 Fans and 2 PSU Bundle ZA en"]
[1,"H8A01A3","HPE 3Y Foundation Care NBD Exchange"]
[2,"H8A01A3     X7Q","HPE Aruba 8325-48 Support"]
[1,"P9K10A","HPE 42U 600mmx1200mm G2 Kitted Advanced Shock Rack with Side Panels and Baying"]
[1,"P9K10A      001","HPE Factory Express Base Racking Service"]
[1,"R0N93A","HPE Alletra 9000 4-way NVMe Storage Base"]
[1,"R0N93A      0D1","Factory Integrated"]
[1,"581817-B21","HPE Configurator Defined Build Instruction Option"]
[1,"R0N99A","HPE Alletra 9060 2-node Controller"]
[1,"R0N99A      0D1","Factory Integrated"]
[8,"Q2P62A","HPE 32Gb SFP28 Short Wave 1-pack Pull Tab Optical Transceiver"]
[8,"Q2P62A      0D1","Factory Integrated"]
[2,"R3B28A","HPE Alletra 9000 16/32Gb 4-port Fibre Channel Host Bus Adapter"]
[2,"R3B28A      0D1","Factory Integrated"]
[12,"R0Q16B","HPE Alletra 9000 7.68TB NVMe SFF FIPS Encrypted SSD"]
[12,"R0Q16B      0D1","Factory Integrated"]
[1,"R1P29A","HPE Data Encryption LTU"]
[1,"R1P29A      0D1","Factory Integrated"]
[2,"R4W00A","HPE 1700W Power Supply Battery Kit"]
[2,"R4W00A      0D1","Factory Integrated"]
[1,"R3B13A","HPE Alletra 2240 2U SFF Drive Enclosure"]
[1,"R3B13A      0D1","Factory Integrated"]
[12,"R0Q16B","HPE Alletra 9000 7.68TB NVMe SFF FIPS Encrypted SSD"]
[12,"R0Q16B      0D1","Factory Integrated"]
[2,"R3B52A","HPE 100Gb QSFP28 to QSFP28 1m Direct Attach Copper Cable"]
[2,"R3B52A      0D1","Factory Integrated"]
[2,"R3B79A","HPE 1700W Power Supply Kit"]
[2,"R3B79A      0D1","Factory Integrated"]
[1,"Q1H95A","HPE Storage 1U Rack Accessories Kit"]
[1,"Q1H95A      0D1","Factory Integrated"]
[2,"R6B05A","HPE SN6700B 64Gb 56/24 24-port 32Gb Short Wave SFP28 Integrated Fibre Channel Switch"]
[2,"R6B05A      0D1","Factory Integrated"]
[48,"QK735A","HPE Premier Flex LC/LC Multi-mode OM4 2 Fiber 15m Cable"]
[48,"QK735A      0D1","Factory Integrated"]
[4,"P9Q45A","HPE G2 Basic 7.3kVA/60309 3-wire 32A/230V Outlets (20) C13/Vertical INTL PDU"]
[4,"P9Q45A      0D1","Factory Integrated"]
[1,"P1F64A","HPE Inside Unpack/Clean Up w/Lift XL SVC"]
[1,"S1E74AAE","HPE Alletra 9000 Software and Support SaaS"]
[946,"S1E74AAE    CTH","5yr Subscription"]
[1,"HA113A1","HPE Installation SVC"]
[1,"HA113A1     5BY","HPE Rack and Rack Options Install SVC"]
[1,"H1SR4AS","HPE Service Credit"]
[1,"HA124A1","HPE Technical Installation Startup SVC"]
[1,"HA124A1     5R5","HPE Storage System Startup Base SW SVC"]
[1,"HA124A1     5SJ","HPE Storage System Startup 4Wy Base SVC"]
[3,"HF383A1","HPE Training Credits for Storage SVC"]
[24,"H0JD6A1","HPE Storage SSD Extended Replacement SVC"]
[1,"H0JD5A5","HPE 5Y Service Credits 30 Per Yr SVC"]
[2,"H0JD5A5     WFN","HPE 5Y Service Credits Qty 150 SVC"]
[1,"HU4A6A5","HPE 5Y Tech Care Essential Service"]
[1,"HU4A6A5     ZU5","HPE Alletra 9000 4-way NVMe Base Supp"]
[1,"HU4A6A5     Z15","HPE Data Encryption LTU Supp"]
[2,"HU4A6A5     Z78","HPE SN6700B 64Gb 56/24 Swch Support"]
[1,"HU4A6A5     ZU7","HPE Alletra 9060 2N Controller Supp"]
[2,"HU4A6A5     ZU8","HPE Alletra 9000 16/32Gb 4p FC HBA Supp"]
[2,"HU4A6A5     ZU9","HPE Alletra 9000 1700W PS Batt Kit Supp"]
[24,"HU4A6A5     ZUC","HPE Alletra 9000 7.68TB NVMe SSD Supp"]
[1,"HU4A6A5     ZVF","HPE Alletra 2240 2U SFF Drv Encl Support"]
[2,"HU4A6A5     ZVG","HPE 1700W PS Kit Support"]
[{"$nulls":5},{"$f":"SUM(F315:F599)","v":{"v":22,"d":"22.00"}},{"$f":"SUM(G315:G599)","v":{"v":0,"d":"0.00"}}]
[]
[]
[]
[]
["Domain Controllers for 3 x sites"]
["Qty","Product #","Product Description",null,"Comply (Yes/No)","Price Excl VAT","Price Incl VAT"]
[3,"P44111-B21","HPE ProLiant DL20 Gen10 Plus 4SFF Configure-to-order Server"]
[3,"P44111-B21  B19","HPE DL20 Gen10+ 4SFF CTO Svr"]
[3,"P45248-B21","Intel Xeon E-2314 2.8GHz 4-core 65W FIO Processor for HPE",null,null,{"v":2,"d":"2.00"}]
[12,"P43019-B21","HPE 16GB (1x16GB) Single Rank x8 DDR4-3200 CAS-22-22-22 Unbuffered Standard Memory Kit"]
[12,"P43019-B21  0D1","Factory Integrated"]
[6,"P28586-B21","HPE 1.2TB SAS 12G Mission Critical 10K SFF BC 3-year Warranty Multi Vendor HDD"]
[6,"P28586-B21  0D1","Factory Integrated"]
[3,"P46114-B21","HPE ProLiant DL20 Gen10 Plus x8/x8 LP FIO Riser Kit"]
[3,"P26259-B21","Broadcom BCM57412 Ethernet 10Gb 2-port SFP+ Adapter for HPE"]
[3,"P26259-B21  0D1","Factory Integrated"]
[3,"P26325-B21","Broadcom MegaRAID MR216i-a x16 Lanes without Cache NVMe/SAS 12G Controller for HPE Gen10 Plus"]
[3,"P26325-B21  0D1","Factory Integrated"]
[6,"455883-B21","HPE BladeSystem c-Class 10Gb SFP+ SR Transceiver"]
[6,"455883-B21  0D1","Factory Integrated"]
[6,"865408-B21","HPE 500W Flex Slot Platinum Hot Plug Low Halogen Power Supply Kit"]
[6,"865408-B21  0D1","Factory Integrated"]
[3,"BD505A","HPE iLO Advanced 1-server License with 3yr Support on iLO Licensed Features"]
[3,"BD505A      0D1","Factory Integrated"]
[3,"P8B31A","HPE OneView w/o iLO including 3yr 24x7 Support 1-server FIO LTU"]
[3,"P45471-B21","HPE ProLiant DL20 Gen10 Plus 4SFF Chassis 2SFF Cable Kit"]
[3,"P45471-B21  0D1","Factory Integrated"]
[3,"775612-B21","HPE 1U Short Friction Rail Kit"]
[3,"775612-B21  0D1","Factory Integrated"]
[3,"P45948-B21","HPE ProLiant DL20 Gen10 Plus RPS FIO Enablement Kit"]
[3,"AC111A","HPE ProLiant Door/dock Small Logistic Service"]
[1,"HA113A1","HPE Installation SVC"]
[3,"HA113A1     5T6","HPE Installation DL160/DL360e Service"]
[1,"HU4D8A5","HPE 5Y Complete Care Addon Basic Service"]
[3,"HU4D8A5     ZX1","HPE DL20 Gen10 Plus Support"]
[3,"HU4D8A5     R2M","HPE iLO Advanced Non Blade Support"]
[3,"HU4D8A5     SVP","HPE One View w/o Ilo Support"]
[1,"H1SR4AS","HPE Service Credit"]
[1,"HU0R5A5","HPE 5Y Service Credits 10 Per Yr SVC"]
[10,"HU0R5A5     Y3D","HPE 5Y Service Credits Qty 50 SVC"]
[1,"HG7A4AS","HPE CC Environment Wide Entitlement SVC"]
[1,"HU3V3A5","HPE 5Y Complete Care Starter Pack basic SVC"]
[1,"HU3V3A5     Y35","HPE 5Y CC Starter Pack Basic SVC"]
[{"$nulls":5},{"$f":"SUM(F607:F643)","v":{"v":2,"d":"2.00"}},{"$f":"SUM(G607:G643)","v":{"v":0,"d":"0.00"}}]

{"sheet":"VMwarePricing Schedule","index":1,"n_rows":16,"n_cols":4,"rows_kept":16,"merged":[[1,2,6,2],[1,3,6,3],[7,0,11,0],[7,2,11,2],[7,3,11,3],[12,2,14,2],[12,3,14,3]]}
["Item","Description","Price Excluding VAT","Price Including VAT"]
[null,"Based on the consumption model, the solution includes the below.",{"v":0,"d":"R0.00"},{"v":3,"d":"R3.00"}]
["VMware Private Cloud Platform","1.       vSphere Enterprise Plus"]
[null,"2.       vCenter standard"]
[null,"3.       NSX Prof"]
[null,"4.       vRealize Operations Manager adv"]
[null,"5.       Site Recovery Manager"]
["Value Added Services","The below services are included:",{"v":1,"d":"R1.00"},{"v":4,"d":"R4.00"}]
[null,"1.       Install, Manage & Operate VMware Software delivered to the customer as a Service."]
[null,"2.       Metering and reporting of VMware Product Usage and monthly billing to end customers. "]
[null,"3.       First-level support to customers & Log Support Calls to VMware."]
[]
["Deployment: ","These are services to stabilize and bring to a supported state the VMware environment for National Treasury. ",{"v":2,"d":"R2.00"},{"v":5,"d":"R5.00"}]
["(Including Migrations and Upgrades)"]
[]
[null,null,{"$f":"SUM(C2:C15)","v":{"v":3,"d":"R3.00"}},{"$f":"SUM(D2:D15)","v":{"v":12,"d":"R12.00"}}]

{"sheet":"Prof Service Pricing Schedule","index":2,"n_rows":15,"n_cols":5,"rows_kept":15,"merged":[[0,0,0,2],[1,0,1,2],[2,0,2,2],[3,0,3,2],[9,0,9,2],[10,0,10,2],[11,0,11,2],[12,0,12,2],[13,0,13,2]]}
["Year1 Professional Services",null,null,"Price Excl VAT","Price Including VAT"]
["5yrs - Managed Services -  24x7 Hybrid : (Onsite Resources during business hrs & Remote after hrs) - Yearly Price"]
["Deployment of VCF Components & SRM (Once Off)                                   "]
[]
[{"$nulls":3},{"$f":"SUM(D2:D4)","v":{"v":0,"d":"R0.00"}},{"$f":"SUM(E2:E4)","v":{"v":0,"d":"R0.00"}}]
[]
[]
[]
[]
["Year2 to Year 5 Services",null,null,"Price Excl VAT","Price Including VAT"]
["Year 2 Managed Services -  24x7 Hybrid : (Onsite Resources during business hrs & Remote after hrs) - Yearly Price"]
["Year 3 Managed Services -  24x7 Hybrid : (Onsite Resources during business hrs & Remote after hrs) - Yearly Price"]
["Year 4 Managed Services -  24x7 Hybrid : (Onsite Resources during business hrs & Remote after hrs) - Yearly Price"]
["Year 5 Managed Services -  24x7 Hybrid : (Onsite Resources during business hrs & Remote after hrs) - Yearly Price"]
[{"$nulls":3},{"$f":"SUM(D11:D14)","v":{"v":0,"d":"R0.00"}},{"$f":"SUM(E11:E14)","v":{"v":0,"d":"R0.00"}}]

{"sheet":"Detailed Specification","index":3,"n_rows":84,"n_cols":6,"rows_kept":84,"merged":[[0,2,0,4],[1,0,1,5],[2,0,3,0],[2,1,3,1],[2,2,2,4],[2,5,3,5],[3,2,3,4],[4,2,4,4],[5,0,9,0],[5,1,9,1],[5,2,5,4],[5,5,9,5],[6,2,6,4],[7,2,7,4],[8,2,8,4],[9,2,9,4],[10,0,14,0],[10,1,14,1],[10,2,10,4],[10,5,14,5],[11,2,11,4],[12,2,12,4],[13,2,13,4],[14,2,14,4],[15,0,19,0],[15,1,19,1],[15,2,15,4],[15,5,19,5],[16,2,16,4],[17,2,17,4],[18,2,18,4],[19,2,19,4],[20,0,24,0],[20,1,24,1],[20,2,20,4],[20,5,24,5],[21,2,21,4],[22,2,22,4],[23,2,23,4],[24,2,24,4],[25,0,29,0],[25,1,29,1],[25,2,25,4],[25,5,29,5],[26,2,26,4],[27,2,27,4],[28,2,28,4],[29,2,29,4],[30,0,32,0],[30,1,32,1],[30,2,30,4],[30,5,32,5],[31,2,31,4],[32,2,32,4],[33,0,44,0],[33,1,44,1],[33,2,33,4],[33,5,44,5],[34,2,34,4],[46,0,57,0],[46,1,57,1],[46,3,57,3],[58,0,75,0],[58,1,75,1],[58,3,75,3],[76,0,78,0],[76,1,78,1],[76,3,78,3],[79,0,84,0],[79,1,84,1],[79,3,84,3]]}
["Category","Qty (Sites)","Description",null,null,"Comply Y/N"]
["Converged Solution with Software, Services and Support, with the following minimum specification:"]
["Rack Infrastructure","·        2","·        2 x HPE 42U 600x1200mm Racks each with   4 x 7.3kVA/60309 3-wire 32A/230V Outlets (36) C13 (6) C19/Vertical INTL PDU "]
[null,null,"·        KVM switch, Mouse, Monitor and LCD"]
[null,"·        3","·        2 x H PESynergy 12000 Blade enclosure provided with relevant redundant 100GB Interconnect Modules providing 100GB uplinks and 50GB downlinks with relevant 32GB FC connectivity and Ethernet Connectivity and all cables and transceivers for connectivity."]
["General Purpose Workloads - Virtualisation Servers","·        3","·        10 x HPE Synergy Blade servers, each configured with: "]
[null,null,"-        2x Processors: 4th Gen Gold Xeon® 24-core Scalable processors "]
[null,null,"-        Memory: 1024TB (64GB (1x64GB) Dual Rank x4 DDR5-4800 CAS-40-39-39 EC8 Registered Smart Memory Kit)."]
[null,null,"-        Internal HDD: 2 x 240GB SSDs. "]
[null,null,"-        Mezzanine: Converged Network Adapter or equivalent with 25GB Ethernet and 32GB FC).."]
["ALM Virtualisation Nodes","·        3","·        3 x HPE Synergy Blade servers, each configured with: "]
[null,null,"-        2x Processors: 4th Gen Gold Xeon® 24-core Scalable processor."]
[null,null,"-        Memory: 1024TB (64GB (1x64GB) Dual Rank x4 DDR5-4800 CAS-40-39-39 EC8 Registered Smart Memory Kit)."]
[null,null,"-        Internal HDD: 2 x 240GB SSDs. "]
[null,null,"·        Mezzanine: Converged Network Adapter or equivalent with 25GB Ethernet and 32GB FC).."]
["Management nodes","·        3","·        3 x HPE Synergy Blade servers, each configured with: "]
[null,null,"-        2x Processors: 4th Gen Gold Xeon® 24-core Scalable processor."]
[null,null,"-        Memory: 1024TB (64GB (1x64GB) Dual Rank x4 DDR5-4800 CAS-40-39-39 EC8 Registered Smart Memory Kit)."]
[null,null,"-        Internal HDD: 2 x 240GB SSDs. "]
[null,null,"·        Mezzanine: Converged Network Adapter or equivalent with 25GB Ethernet and 32GB FC)."]
["Backup And Archival Nodes","·        3","·        2 x HPE Synergy Backup media blades, each configured with: "]
[null,null,"-        Processors: 2 x 4th Gen Gold Xeon® 20-core Scalable processor. "]
[null,null,"-        Memory: 256GB  (64GB (1x64GB) Dual Rank x4 DDR5-4800 CAS-40-39-39 EC8 Registered Smart Memory Kit)."]
[null,null,"-        Internal HDD: 2 x 240GB SSDs. "]
[null,null,"-        Mezzanine: Converged Network Adapter or equivalent with 25GB Ethernet and 32GB FC)."]
["Domain Controllers","·        3","·        HPE DL20 servers, each configured with: "]
[null,null,"-        1 x Processors: Intel Xeon E-2314 2.8GHz 4-core processor "]
[null,null,"-        Memory: 128GB "]
[null,null,"-        Internal HDD: 2 x 1.2TB SAS 12G. "]
[null,null,"-        NIC: 10Gb 2-port SFP+ Adapter"]
["Networking","·        3","·        2 x Redundant Aruba 48 Port 25G SFP+/28, with 8 x 100G QSFP+/28 uplink ports"]
[null,null,"·        2 x redundant Aruba 48 Port 1 or 10 GB base-T Management switches  with 4 x 40G/100GB QSFP+QSFP28  uplink ports"]
[null,null,"-        ALL cables and the necessary transceivers  for connectivity"]
["Storage Array ","·        3","·         Storage Array with 372TB useable capacity and 481TB Raw capacity and 929TB Effective useable capacity on a ratio of  2.5:1 with the following minimum specification."]
[]
[null,null,"Qty","Part","Description"]
[null,null,1,"R0N93A","HPE Alletra 9000 4-way NVMe Storage Base"]
[null,null,1,"R0N99A","HPE Alletra 9060 2N Controller"]
[null,null,2,"R4W00A","HPE 1700W PS Battery Kit"]
[null,null,2,"R3B28A","HPE Alletra 9000 16/32Gb 4p FC HBA"]
[null,null,8,"Q2P62A","HPE 32Gb SFP28 Short Wave 1-pack Pull Tab Optical Transceiver"]
[null,null,1,"R3B13A","HPE Alletra 2240 2U SFF FIO Drive Enclosure"]
[null,null,32,"R0Q10B","HPE ALLETRA 9000 15.36TB NVMe FE SSD"]
[null,null,1,"R1P29A","HPE Data Encryption LTU"]
[null,null,0,"R7N52AAE#CTF","HPE Alletra Software and Support SaaS 3-year Subscription"]
[]
["Consulting and Deployment Services","·        3","·        Project Management with Complete documentation of the solution (Test, sign-off and handover)"]
[null,null,"·        Solution design."]
[null,null,"-        Hardware design (Server, Network, Storage, Backup and DR  Solution)."]
[null,null,"-        Vmware Design."]
[null,null,"·        Solution Installation and Configuration"]
[null,null,"-        Onsite Installation and start up services for Server, Network, Storage, backup solution as per the design."]
[null,null,"-        Vmware installation and configuration as per the design."]
[null,null,"-        Data migration (about ~213TB), from  current environment to new infrastructure"]
[null,null,"-        V2V migrations to new environment (About 300 VMs)"]
[null,null,"-        Disaster Recovery setup and configuration with automated failover and failback."]
[null,null,"-        Disater Recovery testing "]
[]
["Managed Services (HW, OS and vMware Excl Applications)","·        3","Managed Services (HO, SITA and DR) with Onsite Resource during business hrs & Remote after hrs."]
[null,null,"·        Hardware Management"]
[null,null,"·        System administration and operation"]
[null,null,"·        Operating System (OS) Management"]
[null,null,"·        Database Support and Management"]
[null,null,"·        Bare Metal Management"]
[null,null,"·        On Premise Cloud support and management"]
[null,null,"·        Hypervisor support and management "]
[null,null,"·        Virtual Machine Management ~ 300 "]
[null,null,"·        Resource monitoring and alerting"]
[null,null,"·        Resource administration and operation"]
[null,null,"·        Aggregated log monitoring"]
[null,null,"·        OS imaging and patch management"]
[null,null,"·        Backup Management"]
[null,null,"·        Resource Backup, Archival and Recovery"]
[null,null,"·        Resource optimization"]
[null,null,"·        Capacity and utilisation Dashboards"]
[]
["Support and Maintenance","·        3","·        Hardware – 5 year 24x7 Complete Care (Semi-annual operating-system environment patch analysis, firmware analysis, Annual System Health Check)"]
[null,null,"·        Software – 5 year 24x7 telephonic support standard"]
[null,null,"o    "]
["Support Credits  and Training","·        1","·        300 OEM Credits to provide for any additional services required by the department."]
[null,null,"·        Training for 5 x Resources on the following"]
[null,null,"o   Compute"]
[null,null,"o   Storage"]
[null,null,"o   vMware vSphere"]